[Event "Continental op"]
[Site "Sturbridge MA"]
[Date "2018.08.16"]
[Round "2.8"]
[White "Wu, Brandon"]
[Black "Zhang, Yuanchen"]
[Result "1-0"]
[ECO "A30"]
[WhiteElo "1980"]
[BlackElo "2281"]
[PlyCount "163"]
[GameId "2129404764873824"]
[EventDate "2018.08.16"]
[EventType "swiss"]
[EventRounds "9"]
[EventCountry "USA"]
[SourceTitle "10 Days #553"]
[Source "ChessMix"]
[SourceDate "2018.09.01"]
[SourceVersion "1"]
[SourceVersionDate "2018.09.01"]
[SourceQuality "1"]
[TimeControl "6000+10"]
[WhiteClock "0:07:18"]
[BlackClock "0:00:04"]

1. Nf3 {[%emt 0:00:10]} Nf6 {[%emt 0:00:36]} 2. c4 {[%emt 0:00:17]} e6 {[%emt 0:00:30]} 3. g3 {[%emt 0:00:15]} b6 {[%emt 0:01:40]} 4. Bg2 {[%emt 0:00:26]} Bb7 {[%emt 0:00:29]} 5. O-O {[%emt 0:00:22]} c5 {[%emt 0:00:41]} 6. Nc3 {[%emt 0:00:11]} Be7 {[%emt 0:00:26]} 7. Re1 {[%emt 0:01:39]} d6 {[%emt 0:01:15]} 8. e4 {[%emt 0:03:48]} a6 {[%emt 0:05:47]} 9. d4 {[%emt 0:00:57]} cxd4 {[%emt 0:00:29]} 10. Nxd4 {[%emt 0:00:33]} Qc7 {[%emt 0:01:26]} 11. Qe2 {[%emt 0:04:48]} O-O {[%emt 0:12:29]} 12. Be3 {[%emt 0:02:11]} Nbd7 {[%emt 0:06:41]} 13. f4 {[%emt 0:10:14]} Rac8 {[%emt 0:04:46]} 14. Rac1 {[%emt 0:02:47]} Rfd8 {[%emt 0:05:39]} 15. b3 {[%emt 0:02:09]} Bf8 {[%emt 0:09:13]} 16. Bf2 {[%emt 0:04:27]} g6 {[%emt 0:13:58]} 17. f5 {[%emt 0:11:17]} exf5 {[%emt 0:03:04]} 18. exf5 {[%emt 0:03:28]} Bxg2 {[%emt 0:02:19]} 19. Kxg2 {[%emt 0:00:30]} Re8 {[%emt 0:02:24]} 20. Qd2 {[%emt 0:00:11]} Qb7+ {[%emt 0:01:31]} 21. Kg1 {[%emt 0:06:17]} Ne5 {[%emt 0:04:46]} 22. h3 {[%emt 0:03:16]} Bg7 {[%emt 0:08:34]} 23. fxg6 {[%emt 0:03:21]} hxg6 {[%emt 0:00:21]} 24. Rcd1 {[%emt 0:00:44]} d5 {[%emt 0:04:13]} 25. cxd5 {[%emt 0:01:29]} Nxd5 {[%emt 0:01:48]} 26. Nxd5 {[%emt 0:01:09]} Qxd5 {[%emt 0:00:16]} 27. Be3 {[%emt 0:01:39]} Rcd8 {[%emt 0:07:58]} 28. Qg2 {[%emt 0:02:07]} Rd7 {[%emt 0:00:00]} 29. Qxd5 {[%emt 0:05:22]} Rxd5 {[%emt 0:00:00]} 30. Kf2 {[%emt 0:02:23]} Red8 {[%emt 0:00:00]} 31. Ke2 {[%emt 0:00:11]} Bf8 {[%emt 0:01:03]} 32. Nc2 {[%emt 0:00:33]} Nd3 {[%emt 0:00:00]} 33. Bxb6 {[%emt 0:00:11]} Rc8 {[%emt 0:00:00]} 34. Ne3 {[%emt 0:00:11]} Rb5 {[%emt 0:00:51]} 35. Rxd3 {[%emt 0:00:11]} Rxb6 {[%emt 0:00:10]} 36. Nc4 {[%emt 0:00:11]} Re8+ {[%emt 0:00:30]} 37. Kd1 {[%emt 0:00:12]} Rxe1+ {[%emt 0:00:00]} 38. Kxe1 {[%emt 0:00:10]} Rb5 {[%emt 0:00:05]} 39. Kf2 {[%emt 0:00:11]} Rf5+ {[%emt 0:00:18]} 40. Rf3 {[%emt 0:00:37]} Rd5 {[%emt 0:00:28]} 41. Rf6 {[%emt 0:01:27]} a5 {[%emt 0:00:00]} 42. Ra6 {[%emt 0:03:50]} Bb4 {[%emt 0:00:00]} 43. Ke2 {[%emt 0:01:45]} Kg7 {[%emt 0:00:00]} 44. Rc6 {[%emt 0:00:11]} Kg8 {[%emt 0:00:00]} 45. a3 {[%emt 0:04:45]} Bf8 {[%emt 0:00:10]} 46. Rb6 {[%emt 0:00:11]} Rd4 {[%emt 0:00:00]} 47. Ra6 {[%emt 0:01:51]} Re4+ {[%emt 0:00:00]} 48. Kd3 {[%emt 0:01:13]} Re1 {[%emt 0:00:00]} 49. Rxa5 {[%emt 0:00:11]} Rg1 {[%emt 0:00:10]} 50. Rg5 {[%emt 0:00:11]} Bh6 {[%emt 0:00:19]} 51. Rg4 {[%emt 0:00:19]} Kh7 {[%emt 0:00:00]} 52. Ke2 {[%emt 0:00:11]} f5 {[%emt 0:00:00]} 53. Rd4 {[%emt 0:00:25]} Rxg3 {[%emt 0:00:00]} 54. Rd3 {[%emt 0:00:23]} Rg2+ {[%emt 0:00:00]} 55. Kf3 {[%emt 0:00:51]} Rh2 {[%emt 0:00:04]} 56. Kg3 {[%emt 0:00:26]} Rc2 {[%emt 0:00:38]} 57. a4 {[%emt 0:00:10]} f4+ {[%emt 0:01:02]} 58. Kf3 {[%emt 0:00:10]} Rh2 {[%emt 0:00:21]} 59. Ke4 {[%emt 0:00:56]} Re2+ {[%emt 0:00:28]} 60. Kd5 {[%emt 0:00:58]} Rf2 {[%emt 0:00:00]} 61. a5 {[%emt 0:00:11]} Rf1 {[%emt 0:00:00]} 62. Ke4 {[%emt 0:00:10]} Re1+ {[%emt 0:00:00]} 63. Kf3 {[%emt 0:00:16]} Rf1+ {[%emt 0:00:31]} 64. Kg2 {[%emt 0:00:42]} Ra1 {[%emt 0:00:23]} 65. b4 {[%emt 0:00:10]} Ra4 {[%emt 0:00:00]} 66. Rb3 {[%emt 0:00:11]} Bf8 {[%emt 0:00:00]} 67. Nb6 {[%emt 0:00:27]} Ra2+ {[%emt 0:00:00]} 68. Kf3 {[%emt 0:00:11]} g5 {[%emt 0:00:16]} 69. Nd7 {[%emt 0:00:19]} Bxb4 {[%emt 0:00:00]} 70. Rxb4 {[%emt 0:00:10]} Rxa5 {[%emt 0:00:00]} 71. Rb6 {[%emt 0:00:11]} Ra3+ {[%emt 0:00:00]} 72. Kg4 {[%emt 0:00:10]} f3 {[%emt 0:00:00]} 73. Nf6+ {[%emt 0:00:11]} Kg7 {[%emt 0:00:05]} 74. Ne4 {[%emt 0:00:11]} Ra4 {[%emt 0:00:10]} 75. Kxf3 {[%emt 0:00:10]} Ra3+ {[%emt 0:00:12]} 76. Kg4 {[%emt 0:00:10]} Ra4 {[%emt 0:00:10]} 77. Re6 {[%emt 0:00:11]} Kf7 {[%emt 0:00:57]} 78. Re5 {[%emt 0:00:10]} Rb4 {[%emt 0:00:25]} 79. Kxg5 {[%emt 0:00:11]} Rb1 {[%emt 0:00:10]} 80. h4 {[%emt 0:00:11]} Rg1+ {[%emt 0:00:11]} 81. Kh5 {[%emt 0:00:10]} Kg7 {[%emt 0:00:10]} 82. Rg5+ {[%emt 0:00:10]} 1-0

[Event "Continental op"]
[Site "Sturbridge MA"]
[Date "2018.08.18"]
[Round "5.2"]
[White "Zhang, Yuanchen"]
[Black "Matsenko, Sergei"]
[Result "0-1"]
[ECO "E46"]
[WhiteElo "2281"]
[BlackElo "2533"]
[PlyCount "118"]
[GameId "2129404764873847"]
[EventDate "2018.08.16"]
[EventType "swiss"]
[EventRounds "9"]
[EventCountry "USA"]
[SourceTitle "10 Days #553"]
[Source "ChessMix"]
[SourceDate "2018.09.01"]
[SourceVersion "1"]
[SourceVersionDate "2018.09.01"]
[SourceQuality "1"]
[TimeControl "6000+10"]
[WhiteClock "0:02:36"]
[BlackClock "0:03:52"]

1. d4 {[%emt 0:00:10]} Nf6 {[%emt 0:03:12]} 2. c4 {[%emt 0:00:10]} e6 {[%emt 0:00:10]} 3. Nc3 {[%emt 0:00:11]} Bb4 {[%emt 0:00:28]} 4. e3 {[%emt 0:00:13]} O-O {[%emt 0:00:17]} 5. Nge2 {[%emt 0:00:10]} d5 {[%emt 0:00:56]} 6. a3 {[%emt 0:00:11]} Bd6 {[%emt 0:01:57]} 7. Ng3 {[%emt 0:00:57]} c5 {[%emt 0:01:05]} 8. dxc5 {[%emt 0:00:19]} Bxc5 {[%emt 0:00:10]} 9. b4 {[%emt 0:00:41]} Be7 {[%emt 0:00:10]} 10. cxd5 {[%emt 0:00:21]} exd5 {[%emt 0:00:11]} 11. Bd3 {[%emt 0:00:10]} Nc6 {[%emt 0:01:05]} 12. Nce2 {[%emt 0:01:20]} a5 {[%emt 0:07:45]} 13. b5 {[%emt 0:00:10]} Ne5 {[%emt 0:00:10]} 14. Bb2 {[%emt 0:00:43]} Nc4 {[%emt 0:05:01]} 15. Bc3 {[%emt 0:01:00]} a4 {[%emt 0:08:34]} 16. Nf4 {[%emt 0:10:20]} Bg4 {[%emt 0:04:01]} 17. Be2 {[%emt 0:15:27]} Bxe2 {[%emt 0:02:04]} 18. Qxe2 {[%emt 0:00:27]} d4 {[%emt 0:20:54]} 19. Qxc4 {[%emt 0:19:31]} dxc3 {[%emt 0:00:24]} 20. Qxc3 {[%emt 0:12:55]} Nd5 {[%emt 0:02:13]} 21. Qd2 {[%emt 0:07:25]} Nxf4 {[%emt 0:16:32]} 22. exf4 {[%emt 0:00:29]} Bf6 {[%emt 0:00:12]} 23. Ra2 {[%emt 0:02:28]} Re8+ {[%emt 0:00:54]} 24. Ne2 {[%emt 0:00:33]} Qxd2+ {[%emt 0:00:13]} 25. Kxd2 {[%emt 0:00:10]} Rad8+ {[%emt 0:00:10]} 26. Kc1 {[%emt 0:00:12]} Rd5 {[%emt 0:00:10]} 27. b6 {[%emt 0:04:48]} Rd6 {[%emt 0:01:25]} 28. Rd1 {[%emt 0:03:24]} Rc6+ {[%emt 0:01:39]} 29. Kd2 {[%emt 0:00:27]} Rd6+ {[%emt 0:00:10]} 30. Kc1 {[%emt 0:00:35]} Rc6+ {[%emt 0:00:10]} 31. Kd2 {[%emt 0:00:10]} Rxb6 {[%emt 0:00:10]} 32. Rc1 {[%emt 0:04:22]} h5 {[%emt 0:06:13]} 33. Rc4 {[%emt 0:03:22]} Rd6+ {[%emt 0:01:20]} 34. Kc1 {[%emt 0:00:45]} b5 {[%emt 0:04:27]} 35. Rc5 {[%emt 0:01:12]} h4 {[%emt 0:06:26]} 36. Rd2 {[%emt 0:02:58]} Rde6 {[%emt 0:00:10]} 37. Nc3 {[%emt 0:02:26]} Re1+ {[%emt 0:00:42]} 38. Kc2 {[%emt 0:00:10]} Rh1 {[%emt 0:00:59]} 39. h3 {[%emt 0:00:46]} Rg1 {[%emt 0:03:33]} 40. f3 {[%emt 0:00:53]} Ra1 {[%emt 0:00:22]} 41. Nxb5 {[%emt 0:02:04]} Ree1 {[%emt 0:00:00]} 42. Kd3 {[%emt 0:00:00]} Kh7 {[%emt 0:00:00]} 43. Rd5 {[%emt 0:00:00]} Kg6 {[%emt 0:00:00]} 44. Rc2 {[%emt 0:00:00]} Rab1 {[%emt 0:00:00]} 45. Kc4 {[%emt 0:00:00]} Rec1 {[%emt 0:00:00]} 46. Rxc1 {[%emt 0:00:00]} Rxc1+ {[%emt 0:00:00]} 47. Kb4 {[%emt 0:00:00]} Rc2 {[%emt 0:00:00]} 48. Kxa4 {[%emt 0:00:00]} Rxg2 {[%emt 0:00:00]} 49. Kb4 {[%emt 0:00:00]} Rh2 {[%emt 0:00:00]} 50. a4 {[%emt 0:00:00]} Rxh3 {[%emt 0:00:00]} 51. a5 {[%emt 0:00:00]} Rh1 {[%emt 0:00:00]} 52. Kc5 {[%emt 0:00:00]} h3 {[%emt 0:00:00]} 53. Kb6 {[%emt 0:00:00]} h2 {[%emt 0:00:00]} 54. Rd2 {[%emt 0:00:00]} Bd4+ {[%emt 0:00:00]} 55. Ka6 {[%emt 0:00:00]} Be3 {[%emt 0:00:00]} 56. Rg2+ {[%emt 0:00:00]} Kf5 {[%emt 0:00:00]} 57. Nd6+ {[%emt 0:00:51]} Ke6 {[%emt 0:00:00]} 58. Ne4 {[%emt 0:00:58]} Bxf4 {[%emt 0:00:00]} 59. Nf2 {[%emt 0:00:20]} Rg1 0-1

[Event "CAN-ch"]
[Site "Guelph CAN"]
[Date "2015.07.10"]
[Round "1.20"]
[White "Zhang, Yuanchen"]
[Black "Schneider, Corin"]
[Result "1-0"]
[ECO "D51"]
[WhiteElo "2304"]
[BlackElo "1885"]
[PlyCount "23"]
[GameId "2160767738660382"]
[EventDate "2015.07.10"]
[EventType "swiss"]
[EventRounds "9"]
[EventCountry "CAN"]
[TimeControl "40/5400+30:1800+30"]

1. d4 d5 2. c4 c6 3. Nf3 Nf6 4. Nc3 e6 5. Bg5 Nbd7 6. e3 Qa5 7. cxd5 cxd5 8. Nd2 Bb4 9. Qc2 O-O 10. Bd3 h6 11. Bh4 a6 12. O-O 1-0

[Event "CAN-ch"]
[Site "Guelph CAN"]
[Date "2015.07.11"]
[Round "2.7"]
[White "Zhang, Yuanchen"]
[Black "Peredun, Andrew"]
[Result "0-1"]
[ECO "D31"]
[WhiteElo "2304"]
[BlackElo "2406"]
[PlyCount "216"]
[GameId "2160767738660389"]
[EventDate "2015.07.10"]
[EventType "swiss"]
[EventRounds "9"]
[EventCountry "CAN"]
[TimeControl "40/5400+30:1800+30"]

1. d4 d5 2. c4 e6 3. Nc3 c6 4. Nf3 dxc4 5. a4 Bb4 6. e3 b5 7. Bd2 a5 8. Rb1 Qb6 9. Ne4 Nf6 10. Nxf6+ gxf6 11. Qc2 Na6 12. Be2 Be7 13. O-O Bb7 14. b3 cxb3 15. Qxb3 b4 16. e4 c5 17. d5 O-O-O 18. Bc4 Kb8 19. dxe6 fxe6 20. Bxe6 Bxe4 21. Bf4+ Bd6 22. Rbe1 Bxf3 23. Qxf3 Bxf4 24. Qxf4+ Nc7 25. Bf5 Qd6 26. Qf3 h6 27. Rd1 Qe5 28. Bd7 Rh7 29. Qc6 Rhxd7 30. Rxd7 Rxd7 31. Qxd7 c4 32. Rd1 Kb7 33. g3 c3 34. Qd3 Kc6 35. Qc4+ Qc5 36. Qe4+ Kb6 37. Rd8 Ka7 38. Qc2 Qc4 39. Rd3 Kb7 40. Re3 Kc6 41. Re4 Qc5 42. Re2 Qd5 43. Re3 Kc5 44. Rxc3+ bxc3 45. Qxc3+ Kb6 46. Qxf6+ Qc6 47. Qb2+ Ka6 48. Qe2+ Ka7 49. Qe5 Nd5 50. h4 Kb6 51. Qb2+ Nb4 52. Qd4+ Ka6 53. Qd1 Kb6 54. Qd4+ Kb7 55. Qg7+ Ka6 56. h5 Nd3 57. Qe7 Nc5 58. Qe2+ Kb6 59. Qb2+ Ka7 60. Qd4 Ka6 61. g4 Nxa4 62. g5 Qc1+ 63. Kh2 Qxg5 64. Qxa4 Qxh5+ 65. Kg1 Qg5+ 66. Kh2 Qh5+ 67. Kg1 Qb5 68. Qd4 a4 69. Qd6+ Qb6 70. Qd3+ Ka5 71. Qc3+ Kb5 72. Qd3+ Kb4 73. Qb1+ Ka5 74. Qe1+ Ka6 75. Qe2+ Kb7 76. Qe7+ Ka6 77. Qe2+ Qb5 78. Qe6+ Ka5 79. Qe1+ Qb4 80. Qe5+ Kb6 81. Qe6+ Kb5 82. Qf5+ Qc5 83. Qb1+ Ka5 84. Qe1+ Ka6 85. Qe2+ Ka7 86. Qd1 a3 87. Qa4+ Kb6 88. Qb3+ Ka5 89. Qd3 Kb4 90. Qb1+ Ka5 91. Qd3 Qc1+ 92. Kg2 Kb4 93. Qd4+ Qc4 94. Qd6+ Kb3 95. Qd1+ Qc2 96. Qd5+ Kb2 97. Qe5+ Qc3 98. Qe2+ Kc1 99. Qf1+ Kd2 100. Qb5 Qg7+ 101. Kh1 Qb2 102. Qd5+ Ke2 103. Kg2 Qg7+ 104. Kh1 Qa1+ 105. Kg2 Qf1+ 106. Kg3 Qxf2+ 107. Kg4 h5+ 108. Kg5 Qe3+ 0-1

[Event "CAN-ch"]
[Site "Guelph CAN"]
[Date "2015.07.12"]
[Round "4.7"]
[White "Oussedik, Elias"]
[Black "Zhang, Yuanchen"]
[Result "1-0"]
[ECO "A30"]
[WhiteElo "2328"]
[BlackElo "2304"]
[PlyCount "93"]
[GameId "2160767738660412"]
[EventDate "2015.07.10"]
[EventType "swiss"]
[EventRounds "9"]
[EventCountry "CAN"]
[TimeControl "40/5400+30:1800+30"]

1. Nf3 Nf6 2. c4 b6 3. g3 e6 4. Bg2 Bb7 5. O-O c5 6. Nc3 Be7 7. Re1 d6 8. e4 O-O 9. d4 cxd4 10. Nxd4 Qc8 11. Be3 a6 12. Rc1 Nbd7 13. f4 Rd8 14. g4 Bf8 15. g5 Ne8 16. f5 Nc7 17. h4 Re8 18. b3 Qd8 19. Bf2 Rb8 20. Qg4 Ne5 21. Qg3 Qd7 22. a4 Nc6 23. fxe6 fxe6 24. Rcd1 Qf7 25. Rf1 Ne5 26. Be3 Qe7 27. Nf3 Nxf3+ 28. Bxf3 d5 29. Bxb6 Na8 30. Ba7 Rbc8 31. exd5 Bxd5 32. Bf2 Bxf3 33. Qxf3 Qb4 34. Ne4 Be7 35. Be1 Qb6+ 36. Bf2 Qb4 37. Be1 Qb6+ 38. Qf2 Qc6 39. Qf7+ Kh8 40. Bc3 e5 41. Bxe5 Bf8 42. Rd7 Qg6 43. Qxg6 hxg6 44. Rxf8+ Rxf8 45. Bxg7+ Kg8 46. Bxf8 Kxf8 47. Nf6 1-0

[Event "CAN-ch"]
[Site "Guelph CAN"]
[Date "2015.07.12"]
[Round "5.12"]
[White "Zhang, Yuanchen"]
[Black "Zhou, Qiyu"]
[Result "1/2-1/2"]
[ECO "E46"]
[WhiteElo "2304"]
[BlackElo "2221"]
[PlyCount "65"]
[GameId "2160767738660427"]
[EventDate "2015.07.10"]
[EventType "swiss"]
[EventRounds "9"]
[EventCountry "CAN"]
[TimeControl "40/5400+30:1800+30"]

1. d4 Nf6 2. c4 e6 3. Nc3 Bb4 4. e3 O-O 5. Nge2 d5 6. a3 Be7 7. cxd5 exd5 8. Nf4 a5 9. Bd3 Na6 10. O-O c6 11. f3 Nc7 12. Bc2 Ne6 13. e4 dxe4 14. Nxe6 Bxe6 15. fxe4 Qd7 16. Qd3 g6 17. Bg5 Nh5 18. Bxe7 Qxe7 19. Qe3 Rfe8 20. e5 Bc4 21. Bd3 Bxd3 22. Qxd3 Rad8 23. Rad1 c5 24. Nb5 cxd4 25. Nd6 Rf8 26. Qxd4 Ng7 27. Qd5 b6 28. Rf3 Qe6 29. Rb3 Rb8 30. Qxe6 Nxe6 31. Rc1 f6 32. Re3 fxe5 33. Rxe5 1/2-1/2

[Event "CAN-ch"]
[Site "Guelph CAN"]
[Date "2015.07.13"]
[Round "6.10"]
[White "Filipovich, David"]
[Black "Zhang, Yuanchen"]
[Result "0-1"]
[ECO "A11"]
[WhiteElo "2198"]
[BlackElo "2304"]
[PlyCount "92"]
[GameId "2160767738660437"]
[EventDate "2015.07.10"]
[EventType "swiss"]
[EventRounds "9"]
[EventCountry "CAN"]
[TimeControl "40/5400+30:1800+30"]

1. Nf3 Nf6 2. g3 d5 3. Bg2 c6 4. O-O Nbd7 5. b3 g6 6. Bb2 Bg7 7. c4 O-O 8. Nc3 e5 9. cxd5 Nxd5 10. Nxd5 cxd5 11. d3 b6 12. e4 Ba6 13. Re1 d4 14. Ba3 Re8 15. Qd2 Bf8 16. Bxf8 Nxf8 17. Bh3 Qd6 18. Rec1 Ne6 19. b4 Rac8 20. a4 Bb7 21. Rxc8 Rxc8 22. Rc1 Rxc1+ 23. Qxc1 Nc7 24. Qh6 f6 25. Nh4 Qf8 26. Qd2 Na6 27. Be6+ Kg7 28. b5 Nc5 29. Bc4 Qc8 30. a5 Nxe4 31. Qa2 Nc5 32. axb6 axb6 33. Bd5 Bxd5 34. Qxd5 Qd7 35. Qc4 Qe6 36. Qc2 Qb3 37. Qxb3 Nxb3 38. Nf3 Nc5 39. Ne1 Na4 40. Nc2 Nc3 41. Na3 Kf7 42. Nc4 Na4 43. f4 Ke6 44. fxe5 fxe5 45. Kf2 Kd5 46. h4 e4 0-1

[Event "CAN-ch"]
[Site "Guelph CAN"]
[Date "2015.07.14"]
[Round "7.7"]
[White "Zhang, Yuanchen"]
[Black "Cao, Jason"]
[Result "1-0"]
[ECO "E42"]
[WhiteElo "2304"]
[BlackElo "2439"]
[PlyCount "55"]
[GameId "2160767738660446"]
[EventDate "2015.07.10"]
[EventType "swiss"]
[EventRounds "9"]
[EventCountry "CAN"]
[TimeControl "40/5400+30:1800+30"]

1. d4 Nf6 2. c4 e6 3. Nc3 Bb4 4. e3 b6 5. Nge2 c5 6. a3 Ba5 7. Rb1 Na6 8. g3 Bb7 9. d5 b5 10. Bg2 exd5 11. O-O bxc4 12. Nxd5 Nxd5 13. Bxd5 Qc7 14. Bxb7 Qxb7 15. Qa4 Bc7 16. e4 Qxe4 17. Qxa6 Qxb1 18. Qb7 O-O 19. Qxc7 Qd3 20. Nc3 Rac8 21. Qf4 Rfd8 22. Rd1 Qc2 23. Qg4 d5 24. Nxd5 f5 25. Qf3 Qe4 26. Qxe4 fxe4 27. Bg5 Re8 28. Ne7+ 1-0